[Event "Late-Titled-Tuesday-Blitz-September-12-2023"]
[Site "Chess.com"]
[Date "2023.09.12"]
[Round "11"]
[White "Bigfish1995"]
[Black "Njal28"]
[Result "0-1"]
[WhiteElo "3067"]
[BlackElo "3118"]
[TimeControl "180+1"]
[EndTime "16:00:41 PDT"]
[Termination "Njal28 won by resignation"]

1. h3 {[%clk 0:02:58.6]} 1... d5 {[%clk 0:02:57.9]} 2. Nf3 {[%clk 0:02:59.1]}
2... Nf6 {[%clk 0:02:56.7]} 3. e3 {[%clk 0:02:59.5]} 3... c5 {[%clk 0:02:56.5]}
4. b3 {[%clk 0:03:00.1]} 4... Nc6 {[%clk 0:02:56.7]} 5. Bb2 {[%clk 0:03:00.7]}
5... a6 {[%clk 0:02:57.1]} 6. d4 {[%clk 0:02:56]} 6... Bf5 {[%clk 0:02:57.2]} 7.
dxc5 {[%clk 0:02:55.8]} 7... e6 {[%clk 0:02:57.5]} 8. Nd4 {[%clk 0:02:56.5]}
8... Bxc5 {[%clk 0:02:52.5]} 9. Nxf5 {[%clk 0:02:56.4]} 9... exf5 {[%clk
0:02:53.4]} 10. Bd3 {[%clk 0:02:56.4]} 10... g6 {[%clk 0:02:51]} 11. O-O {[%clk
0:02:54]} 11... O-O {[%clk 0:02:50.1]} 12. Nc3 {[%clk 0:02:52.6]} 12... Re8
{[%clk 0:02:48.5]} 13. Ne2 {[%clk 0:02:50.9]} 13... Qe7 {[%clk 0:02:40.3]} 14.
c4 {[%clk 0:02:40.9]} 14... Rad8 {[%clk 0:02:32.4]} 15. Qc1 {[%clk 0:01:35.5]}
15... d4 {[%clk 0:02:17.5]} 16. exd4 {[%clk 0:01:30.9]} 16... Nxd4 {[%clk
0:02:18.4]} 17. Nf4 {[%clk 0:01:24.8]} 17... Qc7 {[%clk 0:02:03.6]} 18. Rd1
{[%clk 0:01:17.8]} 18... Ne4 {[%clk 0:01:40.7]} 19. b4 {[%clk 0:00:44.2]} 19...
Nxf2 {[%clk 0:01:07.5]} 20. Nd5 {[%clk 0:00:23.1]} 20... Nf3+ {[%clk 0:00:38.1]}
21. Kf1 {[%clk 0:00:17.3]} 21... Nh2+ {[%clk 0:00:38.1]} 22. Kg1 {[%clk
0:00:17.3]} 22... Nxh3+ {[%clk 0:00:37.6]} 23. Kh1 {[%clk 0:00:16.7]} 23... Nf2+
{[%clk 0:00:37]} 24. Kg1 {[%clk 0:00:17.6]} 24... Nf3+ {[%clk 0:00:29.2]} 25.
Kf1 {[%clk 0:00:15.5]} 25... Qh2 {[%clk 0:00:25.7]} 26. Nf6+ {[%clk 0:00:15.2]}
26... Kf8 {[%clk 0:00:26.4]} 27. Nxh7+ {[%clk 0:00:10.5]} 27... Qxh7 {[%clk
0:00:27.3]} 28. bxc5 {[%clk 0:00:10.6]} 28... Nxd1 {[%clk 0:00:23.1]} 29. Qxd1
{[%clk 0:00:08.5]} 29... Re1+ {[%clk 0:00:17.6]} 30. Qxe1 {[%clk 0:00:07.9]}
30... Nxe1 {[%clk 0:00:16.4]} 31. Rxe1 {[%clk 0:00:08.1]} 31... Qh1+ {[%clk
0:00:12.3]} 32. Kf2 {[%clk 0:00:08.2]} 32... Qh4+ {[%clk 0:00:12.5]} 33. Ke2
{[%clk 0:00:06.7]} 33... Re8+ {[%clk 0:00:12.1]} 34. Kd1 {[%clk 0:00:07.1]}
34... Qxe1+ {[%clk 0:00:12.2]} 35. Kc2 {[%clk 0:00:08]} 35... Re2+ {[%clk
0:00:12.7]} 36. Bxe2 {[%clk 0:00:07.3]} 36... Qxe2+ {[%clk 0:00:13.6]} 37. Kb3
{[%clk 0:00:08]} 37... Ke8 {[%clk 0:00:14.3]} 38. c6 {[%clk 0:00:07.7]} 38...
bxc6 {[%clk 0:00:15.2]} 39. Bc3 {[%clk 0:00:08.1]} 39... Qxg2 {[%clk 0:00:15.8]}
40. Bd4 {[%clk 0:00:08]} 40... Qe4 {[%clk 0:00:16.2]} 41. Bc5 {[%clk 0:00:07.8]}
41... f4 {[%clk 0:00:17.1]} 42. Kc3 {[%clk 0:00:08]} 42... f3 {[%clk 0:00:18]}
0-1

[Event "Late-Titled-Tuesday-Blitz-September-12-2023"]
[Site "Chess.com"]
[Date "2023.09.12"]
[Round "11"]
[White "oskariot"]
[Black "Oleksandr_Bortnyk"]
[Result "0-1"]
[WhiteElo "2720"]
[BlackElo "3007"]
[TimeControl "180+1"]
[EndTime "16:00:42 PDT"]
[Termination "Oleksandr_Bortnyk won on time"]

1. g3 {[%clk 0:03:00.9]} 1... Nf6 {[%clk 0:02:54.7]} 2. Bg2 {[%clk 0:03:01.4]}
2... g6 {[%clk 0:02:54.3]} 3. Nf3 {[%clk 0:03:01.1]} 3... Bg7 {[%clk 0:02:54.9]}
4. O-O {[%clk 0:03:01.1]} 4... O-O {[%clk 0:02:55.8]} 5. b3 {[%clk 0:03:01.6]}
5... d5 {[%clk 0:02:56]} 6. Bb2 {[%clk 0:03:01.7]} 6... c5 {[%clk 0:02:56.1]} 7.
e3 {[%clk 0:03:01.5]} 7... Na6 {[%clk 0:02:55.9]} 8. c4 {[%clk 0:03:00.7]} 8...
Bf5 {[%clk 0:02:56.6]} 9. Ne5 {[%clk 0:02:51.6]} 9... e6 {[%clk 0:02:54.5]} 10.
cxd5 {[%clk 0:02:37.8]} 10... exd5 {[%clk 0:02:53.2]} 11. d4 {[%clk 0:02:36.6]}
11... Nb4 {[%clk 0:02:48]} 12. a3 {[%clk 0:01:56.6]} 12... Nc2 {[%clk
0:02:48.4]} 13. e4 {[%clk 0:01:56.7]} 13... Nxe4 {[%clk 0:02:19.6]} 14. Qxc2
{[%clk 0:01:56.2]} 14... Nxg3 {[%clk 0:02:19.7]} 15. Qd1 {[%clk 0:01:47.2]}
15... Nxf1 {[%clk 0:02:16.5]} 16. Qxf1 {[%clk 0:01:48.1]} 16... Re8 {[%clk
0:02:03.6]} 17. f4 {[%clk 0:01:37.1]} 17... Rc8 {[%clk 0:02:01.8]} 18. dxc5
{[%clk 0:01:13.7]} 18... Rxc5 {[%clk 0:02:00.4]} 19. Nc3 {[%clk 0:01:09.3]}
19... d4 {[%clk 0:01:40.9]} 20. Rd1 {[%clk 0:01:07]} 20... dxc3 {[%clk
0:01:31.6]} 21. Rxd8 {[%clk 0:01:06.8]} 21... Rxd8 {[%clk 0:01:32.5]} 22. Bc1
{[%clk 0:01:06.1]} 22... c2 {[%clk 0:01:30.4]} 23. Bf3 {[%clk 0:01:06.5]} 23...
Rc3 {[%clk 0:01:25]} 24. Be2 {[%clk 0:00:51.5]} 24... Bh3 {[%clk 0:01:01.7]} 25.
Qe1 {[%clk 0:00:45.8]} 25... Rxb3 {[%clk 0:01:02.2]} 26. Nxf7 {[%clk 0:00:23.8]}
26... Kxf7 {[%clk 0:00:22.7]} 27. Bc4+ {[%clk 0:00:23.5]} 27... Kf8 {[%clk
0:00:23.5]} 28. Bxb3 {[%clk 0:00:20.1]} 28... Rd1 {[%clk 0:00:22.9]} 29. Qxd1
{[%clk 0:00:20.2]} 29... cxd1=Q+ {[%clk 0:00:23.8]} 30. Bxd1 {[%clk 0:00:21.1]}
30... Bd4+ {[%clk 0:00:24.6]} 31. Kh1 {[%clk 0:00:20]} 31... Ke7 {[%clk
0:00:24.9]} 32. Bf3 {[%clk 0:00:16.4]} 32... b6 {[%clk 0:00:25.1]} 33. Bd2
{[%clk 0:00:12.6]} 33... a5 {[%clk 0:00:25.3]} 34. a4 {[%clk 0:00:08.3]} 34...
Kd6 {[%clk 0:00:25.4]} 35. Bd1 {[%clk 0:00:05.1]} 35... Kd5 {[%clk 0:00:21.1]}
36. Bb3+ {[%clk 0:00:05.2]} 36... Ke4 {[%clk 0:00:21.7]} 37. Bg8 {[%clk
0:00:04.8]} 37... Kf3 {[%clk 0:00:22.1]} 38. Bd5+ {[%clk 0:00:04.9]} 38... Kf2
{[%clk 0:00:20.4]} 39. Bc1 {[%clk 0:00:03.2]} 39... h5 {[%clk 0:00:20.2]} 40.
Be4 {[%clk 0:00:03]} 40... h4 {[%clk 0:00:20.1]} 41. Bd2 {[%clk 0:00:02]} 41...
Bf1 {[%clk 0:00:20.3]} 42. Bc1 {[%clk 0:00:01.8]} 42... h3 {[%clk 0:00:20.9]}
0-1

[Event "Late-Titled-Tuesday-Blitz-September-12-2023"]
[Site "Chess.com"]
[Date "2023.09.12"]
[Round "11"]
[White "Djager97"]
[Black "stasOR4ik"]
[Result "0-1"]
[WhiteElo "2526"]
[BlackElo "2442"]
[TimeControl "180+1"]
[EndTime "16:00:47 PDT"]
[Termination "stasOR4ik won on time"]

1. e4 {[%clk 0:03:00.9]} 1... c6 {[%clk 0:02:59.5]} 2. d4 {[%clk 0:03:00.8]}
2... d5 {[%clk 0:03:00.3]} 3. exd5 {[%clk 0:03:01.7]} 3... cxd5 {[%clk
0:03:00.9]} 4. Bd3 {[%clk 0:03:02.3]} 4... Nf6 {[%clk 0:03:01.3]} 5. h3 {[%clk
0:03:01.5]} 5... Nc6 {[%clk 0:03:01.8]} 6. c3 {[%clk 0:03:02.1]} 6... g6 {[%clk
0:03:02.5]} 7. Nf3 {[%clk 0:03:02.3]} 7... Bf5 {[%clk 0:03:03.1]} 8. Be2 {[%clk
0:03:02.9]} 8... Bg7 {[%clk 0:03:03]} 9. Bf4 {[%clk 0:03:03.5]} 9... O-O {[%clk
0:03:02.4]} 10. O-O {[%clk 0:03:04.2]} 10... Re8 {[%clk 0:03:01.5]} 11. Nbd2
{[%clk 0:03:04.6]} 11... Nd7 {[%clk 0:02:54.5]} 12. Re1 {[%clk 0:03:03.9]} 12...
e5 {[%clk 0:02:54]} 13. dxe5 {[%clk 0:03:04.8]} 13... Ndxe5 {[%clk 0:02:51.6]}
14. Nxe5 {[%clk 0:03:05.7]} 14... Nxe5 {[%clk 0:02:50.9]} 15. Bb5 {[%clk
0:02:54.8]} 15... Re6 {[%clk 0:02:28.5]} 16. Nf3 {[%clk 0:02:33.9]} 16... Nxf3+
{[%clk 0:02:27.8]} 17. Qxf3 {[%clk 0:02:34.8]} 17... Be4 {[%clk 0:02:26.9]} 18.
Qg3 {[%clk 0:02:18.3]} 18... Qb6 {[%clk 0:02:20.3]} 19. a4 {[%clk 0:02:18.1]}
19... a6 {[%clk 0:02:18.7]} 20. Be3 {[%clk 0:02:11.2]} 20... d4 {[%clk
0:02:10.5]} 21. cxd4 {[%clk 0:02:12.1]} 21... Bd5 {[%clk 0:01:47.2]} 22. Bf1
{[%clk 0:01:58.5]} 22... Qxb2 {[%clk 0:01:46.2]} 23. Qg5 {[%clk 0:01:41]} 23...
Bc6 {[%clk 0:01:23.9]} 24. Bc4 {[%clk 0:01:25.1]} 24... Re4 {[%clk 0:01:22.2]}
25. Rab1 {[%clk 0:01:06.3]} 25... Qa3 {[%clk 0:00:59.3]} 26. Bb3 {[%clk
0:00:52.2]} 26... Rae8 {[%clk 0:00:23.7]} 27. Red1 {[%clk 0:00:52.1]} 27... Bxa4
{[%clk 0:00:17.4]} 28. Bxf7+ {[%clk 0:00:12.5]} 28... Kxf7 {[%clk 0:00:16.7]}
29. Rxb7+ {[%clk 0:00:11.1]} 29... R4e7 {[%clk 0:00:11.4]} 30. Qd5+ {[%clk
0:00:09.6]} 30... Kf8 {[%clk 0:00:11.2]} 31. Bf4 {[%clk 0:00:08.1]} 31... Bxd1
{[%clk 0:00:09.3]} 32. Bd6 {[%clk 0:00:08.2]} 32... Bb3 {[%clk 0:00:04.4]} 33.
Bxe7+ {[%clk 0:00:02.2]} 33... Qxe7 {[%clk 0:00:04]} 34. Qf3+ {[%clk 0:00:01.6]}
34... Qf6 {[%clk 0:00:02.7]} 0-1

[Event "Late-Titled-Tuesday-Blitz-September-12-2023"]
[Site "Chess.com"]
[Date "2023.09.12"]
[Round "11"]
[White "becemix"]
[Black "pokochajszachy"]
[Result "0-1"]
[WhiteElo "2520"]
[BlackElo "2410"]
[TimeControl "180+1"]
[EndTime "16:00:51 PDT"]
[Termination "pokochajszachy won on time"]

1. d4 {[%clk 0:03:00.9]} 1... d5 {[%clk 0:03:00]} 2. Nf3 {[%clk 0:03:00.2]} 2...
Nf6 {[%clk 0:03:00.3]} 3. c4 {[%clk 0:02:59.3]} 3... c6 {[%clk 0:03:00.6]} 4.
Nc3 {[%clk 0:02:55.6]} 4... e6 {[%clk 0:03:01.1]} 5. Bf4 {[%clk 0:02:52.7]} 5...
Bd6 {[%clk 0:03:00.5]} 6. Bg5 {[%clk 0:02:40.1]} 6... h6 {[%clk 0:02:58.9]} 7.
Bh4 {[%clk 0:02:39.7]} 7... dxc4 {[%clk 0:02:42.5]} 8. e4 {[%clk 0:02:34.8]}
8... g5 {[%clk 0:02:42.7]} 9. Bg3 {[%clk 0:02:15.2]} 9... Bb4 {[%clk 0:02:39.9]}
10. Qc2 {[%clk 0:02:11.7]} 10... b5 {[%clk 0:02:38.1]} 11. a3 {[%clk 0:01:47.7]}
11... Be7 {[%clk 0:02:27.8]} 12. Rd1 {[%clk 0:01:34.6]} 12... Bb7 {[%clk
0:02:27.3]} 13. Be2 {[%clk 0:01:28.4]} 13... Nbd7 {[%clk 0:02:25.8]} 14. O-O
{[%clk 0:01:22.9]} 14... a6 {[%clk 0:02:23]} 15. Ne5 {[%clk 0:01:12.9]} 15... h5
{[%clk 0:02:11.9]} 16. h4 {[%clk 0:01:07.6]} 16... gxh4 {[%clk 0:02:02.9]} 17.
Bxh4 {[%clk 0:01:03.8]} 17... Qb6 {[%clk 0:01:50.6]} 18. Bg3 {[%clk 0:00:48]}
18... h4 {[%clk 0:01:48.8]} 19. Bh2 {[%clk 0:00:48]} 19... h3 {[%clk 0:01:44.7]}
20. g3 {[%clk 0:00:47.8]} 20... Nxe5 {[%clk 0:01:35.5]} 21. dxe5 {[%clk
0:00:47.8]} 21... Nd7 {[%clk 0:01:36.4]} 22. g4 {[%clk 0:00:45.5]} 22... O-O-O
{[%clk 0:01:31.8]} 23. Rd2 {[%clk 0:00:41.9]} 23... Nc5 {[%clk 0:01:30.6]} 24.
Bf3 {[%clk 0:00:40.8]} 24... Nb3 {[%clk 0:01:28.5]} 25. Rxd8+ {[%clk 0:00:39.3]}
25... Rxd8 {[%clk 0:01:29.4]} 26. Rd1 {[%clk 0:00:39.3]} 26... Bc5 {[%clk
0:01:24.8]} 27. Rxd8+ {[%clk 0:00:37.2]} 27... Qxd8 {[%clk 0:01:25.7]} 28. Be2
{[%clk 0:00:32.2]} 28... Qd4 {[%clk 0:01:19.1]} 29. Bf1 {[%clk 0:00:31.6]} 29...
a5 {[%clk 0:01:08.8]} 30. Bxh3 {[%clk 0:00:31.1]} 30... Qd3 {[%clk 0:01:03.5]}
31. Qxd3 {[%clk 0:00:25]} 31... cxd3 {[%clk 0:01:04.4]} 32. g5 {[%clk
0:00:25.5]} 32... Bd4 {[%clk 0:01:00.8]} 33. Nd1 {[%clk 0:00:21.5]} 33... Kd7
{[%clk 0:00:56.8]} 34. Kf1 {[%clk 0:00:18.7]} 34... c5 {[%clk 0:00:56.8]} 35. f4
{[%clk 0:00:18.7]} 35... Bxe4 {[%clk 0:00:55.9]} 36. Bg4 {[%clk 0:00:14.6]}
36... c4 {[%clk 0:00:55.6]} 37. Bg3 {[%clk 0:00:13.8]} 37... b4 {[%clk
0:00:52.6]} 38. axb4 {[%clk 0:00:12.7]} 38... axb4 {[%clk 0:00:53.5]} 39. Be1
{[%clk 0:00:12.8]} 39... d2 {[%clk 0:00:50.4]} 40. Bf2 {[%clk 0:00:12.4]} 40...
Bd3+ {[%clk 0:00:46.8]} 41. Be2 {[%clk 0:00:11.3]} 41... Bxe2+ {[%clk
0:00:29.1]} 42. Kxe2 {[%clk 0:00:10.3]} 42... c3 {[%clk 0:00:25.1]} 43. bxc3
{[%clk 0:00:09]} 43... bxc3 {[%clk 0:00:26]} 44. Bxd4 {[%clk 0:00:07.8]} 44...
c2 {[%clk 0:00:20.6]} 0-1

[Event "Late-Titled-Tuesday-Blitz-September-12-2023"]
[Site "Chess.com"]
[Date "2023.09.12"]
[Round "11"]
[White "chessajedrezz2020"]
[Black "Mariia89"]
[Result "1-0"]
[WhiteElo "2699"]
[BlackElo "2029"]
[TimeControl "180+1"]
[EndTime "16:00:51 PDT"]
[Termination "chessajedrezz2020 won on time"]

1. Nf3 {[%clk 0:03:00.9]} 1... c5 {[%clk 0:02:59.6]} 2. g3 {[%clk 0:02:59.3]}
2... Nc6 {[%clk 0:02:59.9]} 3. Bg2 {[%clk 0:02:58.9]} 3... g6 {[%clk 0:03:00.2]}
4. O-O {[%clk 0:02:58.8]} 4... Bg7 {[%clk 0:03:00.3]} 5. c4 {[%clk 0:02:50.2]}
5... Nf6 {[%clk 0:03:00.1]} 6. Nc3 {[%clk 0:02:47.4]} 6... O-O {[%clk
0:02:59.5]} 7. d3 {[%clk 0:02:43]} 7... d5 {[%clk 0:02:58.9]} 8. cxd5 {[%clk
0:02:03.4]} 8... Nxd5 {[%clk 0:02:59.5]} 9. Nxd5 {[%clk 0:02:04]} 9... Qxd5
{[%clk 0:02:57.5]} 10. Be3 {[%clk 0:02:02.7]} 10... Qd6 {[%clk 0:02:44.5]} 11.
Rc1 {[%clk 0:01:45.5]} 11... b6 {[%clk 0:02:43.3]} 12. d4 {[%clk 0:01:20.8]}
12... c4 {[%clk 0:01:54.6]} 13. Rxc4 {[%clk 0:01:08.8]} 13... Ba6 {[%clk
0:01:54.3]} 14. Rc1 {[%clk 0:00:58.3]} 14... Rad8 {[%clk 0:01:41.3]} 15. Qa4
{[%clk 0:00:47.7]} 15... Bxe2 {[%clk 0:01:37.5]} 16. Rxc6 {[%clk 0:00:45]} 16...
Qd5 {[%clk 0:00:57.2]} 17. Ne5 {[%clk 0:00:34.5]} 17... Qb5 {[%clk 0:00:54.8]}
18. Qxb5 {[%clk 0:00:19.8]} 18... Bxb5 {[%clk 0:00:53.9]} 19. Rfc1 {[%clk
0:00:20.1]} 19... Bxc6 {[%clk 0:00:53.5]} 20. Nxc6 {[%clk 0:00:16.4]} 20... Rd7
{[%clk 0:00:52.9]} 21. b4 {[%clk 0:00:16]} 21... b5 {[%clk 0:00:39]} 22. d5
{[%clk 0:00:13.4]} 22... a6 {[%clk 0:00:33.7]} 23. Bc5 {[%clk 0:00:13]} 23... f6
{[%clk 0:00:31.5]} 24. Bh3 {[%clk 0:00:11.8]} 24... Rc7 {[%clk 0:00:27]} 25.
Be6+ {[%clk 0:00:11.6]} 25... Kh8 {[%clk 0:00:26.4]} 26. Nxe7 {[%clk 0:00:08.7]}
26... Rd8 {[%clk 0:00:18.5]} 27. Nc6 {[%clk 0:00:07.6]} 27... Re8 {[%clk
0:00:17]} 28. Nd4 {[%clk 0:00:05.7]} 28... f5 {[%clk 0:00:15.5]} 29. Nf3 {[%clk
0:00:06.4]} 29... Bh6 {[%clk 0:00:11.7]} 30. Rd1 {[%clk 0:00:06.6]} 30... Bg7
{[%clk 0:00:11.1]} 31. h4 {[%clk 0:00:06.2]} 31... a5 {[%clk 0:00:09.2]} 32. a3
{[%clk 0:00:06]} 32... axb4 {[%clk 0:00:09.1]} 33. axb4 {[%clk 0:00:06.9]} 33...
Ra8 {[%clk 0:00:07.9]} 34. d6 {[%clk 0:00:05.7]} 34... Rc6 {[%clk 0:00:06.7]}
35. Bd5 {[%clk 0:00:05.4]} 35... Rac8 {[%clk 0:00:06.4]} 36. Bxc6 {[%clk
0:00:05.5]} 36... Rxc6 {[%clk 0:00:07]} 37. d7 {[%clk 0:00:06.2]} 37... Bf6
{[%clk 0:00:07.2]} 38. Bd4 {[%clk 0:00:06.5]} 38... Kg7 {[%clk 0:00:05.1]} 39.
d8=Q {[%clk 0:00:06.4]} 1-0

[Event "Late-Titled-Tuesday-Blitz-September-12-2023"]
[Site "Chess.com"]
[Date "2023.09.12"]
[Round "11"]
[White "Maksimus1998"]
[Black "GMKrikor"]
[Result "0-1"]
[WhiteElo "2596"]
[BlackElo "2879"]
[TimeControl "180+1"]
[EndTime "16:00:54 PDT"]
[Termination "GMKrikor won by resignation"]

1. d4 {[%clk 0:02:57.4]} 1... Nf6 {[%clk 0:02:55.8]} 2. Nf3 {[%clk 0:02:57.5]}
2... g6 {[%clk 0:02:54.1]} 3. Bg5 {[%clk 0:02:56.4]} 3... Bg7 {[%clk 0:02:53.5]}
4. Nbd2 {[%clk 0:02:56.3]} 4... O-O {[%clk 0:02:51]} 5. c3 {[%clk 0:02:56]} 5...
d6 {[%clk 0:02:50]} 6. e4 {[%clk 0:02:55.7]} 6... c5 {[%clk 0:02:48.9]} 7. dxc5
{[%clk 0:02:55.4]} 7... dxc5 {[%clk 0:02:49.8]} 8. Bc4 {[%clk 0:02:55.3]} 8...
Qc7 {[%clk 0:02:45.7]} 9. O-O {[%clk 0:02:54.6]} 9... Nc6 {[%clk 0:02:43.1]} 10.
Qe2 {[%clk 0:02:51.7]} 10... h6 {[%clk 0:02:38.8]} 11. Bh4 {[%clk 0:02:49.2]}
11... Nh5 {[%clk 0:02:38.8]} 12. Rfd1 {[%clk 0:02:46.5]} 12... Na5 {[%clk
0:02:37.5]} 13. Bg3 {[%clk 0:02:15.1]} 13... Nxg3 {[%clk 0:02:34.4]} 14. hxg3
{[%clk 0:02:16]} 14... Nxc4 {[%clk 0:02:34.2]} 15. Nxc4 {[%clk 0:02:16]} 15...
Be6 {[%clk 0:02:13.2]} 16. Ne3 {[%clk 0:02:15.6]} 16... Rfe8 {[%clk 0:02:03.3]}
17. Nd5 {[%clk 0:02:14.2]} 17... Qc6 {[%clk 0:02:02.9]} 18. Rd2 {[%clk
0:02:11.7]} 18... Bg4 {[%clk 0:01:57.9]} 19. Rad1 {[%clk 0:02:10.1]} 19... g5
{[%clk 0:01:51.2]} 20. Qc4 {[%clk 0:01:45.8]} 20... b5 {[%clk 0:01:47.2]} 21.
Qd3 {[%clk 0:01:43.1]} 21... a6 {[%clk 0:00:54.9]} 22. Ne3 {[%clk 0:01:42.8]}
22... c4 {[%clk 0:00:53.1]} 23. Qc2 {[%clk 0:01:28.2]} 23... Bc8 {[%clk
0:00:44.8]} 24. Nd4 {[%clk 0:01:27.1]} 24... Qb7 {[%clk 0:00:36.6]} 25. Ndf5
{[%clk 0:01:25.7]} 25... Bf8 {[%clk 0:00:36.3]} 26. g4 {[%clk 0:01:09.8]} 26...
e6 {[%clk 0:00:31.3]} 27. Nd6 {[%clk 0:01:07.9]} 27... Bxd6 {[%clk 0:00:26.1]}
28. Rxd6 {[%clk 0:01:08.8]} 28... Qc7 {[%clk 0:00:24.9]} 29. e5 {[%clk
0:00:59.4]} 29... Bb7 {[%clk 0:00:25.2]} 30. Rd7 {[%clk 0:00:59.7]} 30... Qc6
{[%clk 0:00:23.1]} 31. Rxf7 {[%clk 0:00:59.3]} 31... Kxf7 {[%clk 0:00:16.6]} 32.
Qh7+ {[%clk 0:00:59]} 32... Kf8 {[%clk 0:00:17.4]} 33. Rd7 {[%clk 0:00:58.7]}
33... Qxd7 {[%clk 0:00:12.4]} 34. Qxd7 {[%clk 0:00:59.6]} 34... Be4 {[%clk
0:00:12.8]} 35. f3 {[%clk 0:00:55.3]} 35... Bg6 {[%clk 0:00:11.6]} 36. Nc2
{[%clk 0:00:52.2]} 36... Rad8 {[%clk 0:00:11.6]} 37. Qc7 {[%clk 0:00:51.2]}
37... Bxc2 {[%clk 0:00:10.3]} 38. a4 {[%clk 0:00:43.4]} 38... bxa4 {[%clk
0:00:07.8]} 39. Qxc4 {[%clk 0:00:42.3]} 39... Rb8 {[%clk 0:00:07.1]} 40. Qxa6
{[%clk 0:00:35.7]} 40... Rxb2 {[%clk 0:00:04.1]} 41. Qd6+ {[%clk 0:00:35.6]}
41... Kg8 {[%clk 0:00:04.6]} 42. c4 {[%clk 0:00:35.9]} 42... Rbb8 {[%clk
0:00:03.5]} 43. f4 {[%clk 0:00:33.1]} 43... Ra8 {[%clk 0:00:02.4]} 44. fxg5
{[%clk 0:00:32]} 44... a3 {[%clk 0:00:02.3]} 45. gxh6 {[%clk 0:00:32.1]} 45...
a2 {[%clk 0:00:02.2]} 46. Qc7 {[%clk 0:00:31.2]} 46... a1=Q+ {[%clk 0:00:02.5]}
47. Kh2 {[%clk 0:00:30.8]} 47... Qa7 {[%clk 0:00:02.6]} 0-1

[Event "Late-Titled-Tuesday-Blitz-September-12-2023"]
[Site "Chess.com"]
[Date "2023.09.12"]
[Round "11"]
[White "hellokostya"]
[Black "Fandorine"]
[Result "0-1"]
[WhiteElo "2620"]
[BlackElo "2908"]
[TimeControl "180+1"]
[EndTime "16:00:55 PDT"]
[Termination "Fandorine won by resignation"]

1. d4 {[%clk 0:03:00.9]} 1... Nf6 {[%clk 0:02:59.2]} 2. c4 {[%clk 0:03:01.3]}
2... g6 {[%clk 0:02:59.7]} 3. Nc3 {[%clk 0:03:01.3]} 3... Bg7 {[%clk 0:03:00.5]}
4. e4 {[%clk 0:03:01.8]} 4... d6 {[%clk 0:03:01.2]} 5. h3 {[%clk 0:03:02.2]}
5... O-O {[%clk 0:03:01.7]} 6. Be3 {[%clk 0:03:02.2]} 6... a5 {[%clk 0:03:01.1]}
7. Qd2 {[%clk 0:02:56.6]} 7... a4 {[%clk 0:03:00.9]} 8. Bd3 {[%clk 0:02:47.9]}
8... c6 {[%clk 0:02:57.5]} 9. Nf3 {[%clk 0:02:45.3]} 9... a3 {[%clk 0:02:55.6]}
10. b3 {[%clk 0:02:44.9]} 10... Na6 {[%clk 0:02:50.7]} 11. O-O {[%clk
0:02:39.5]} 11... Qa5 {[%clk 0:02:49.7]} 12. Nd5 {[%clk 0:02:25.5]} 12... Qd8
{[%clk 0:02:08.6]} 13. Nxf6+ {[%clk 0:02:10.5]} 13... exf6 {[%clk 0:02:07.6]}
14. Bh6 {[%clk 0:02:04.7]} 14... c5 {[%clk 0:02:03.6]} 15. Bxg7 {[%clk
0:02:03.8]} 15... Kxg7 {[%clk 0:02:04.5]} 16. Rad1 {[%clk 0:01:57.7]} 16... Nb4
{[%clk 0:01:52.6]} 17. Bb1 {[%clk 0:01:57.1]} 17... Qc7 {[%clk 0:01:52.7]} 18.
Qf4 {[%clk 0:01:49]} 18... Ra6 {[%clk 0:01:46.2]} 19. h4 {[%clk 0:01:41.2]}
19... h6 {[%clk 0:01:43.7]} 20. h5 {[%clk 0:01:26.8]} 20... g5 {[%clk
0:01:43.4]} 21. Qg3 {[%clk 0:01:27.3]} 21... Qe7 {[%clk 0:01:34]} 22. Rfe1
{[%clk 0:01:20]} 22... Nc6 {[%clk 0:01:22.8]} 23. e5 {[%clk 0:01:01.5]} 23...
dxe5 {[%clk 0:01:16.7]} 24. dxe5 {[%clk 0:01:01.2]} 24... f5 {[%clk 0:01:17]}
25. Nh4 {[%clk 0:00:51.4]} 25... Nd4 {[%clk 0:01:01.7]} 26. Rxd4 {[%clk
0:00:39.1]} 26... cxd4 {[%clk 0:00:59.7]} 27. Bxf5 {[%clk 0:00:37.3]} 27... Kh8
{[%clk 0:00:54.4]} 28. Bxc8 {[%clk 0:00:37.2]} 28... gxh4 {[%clk 0:00:50.8]} 29.
Qh3 {[%clk 0:00:36.7]} 29... Ra5 {[%clk 0:00:28.4]} 30. f4 {[%clk 0:00:34.1]}
30... f6 {[%clk 0:00:21.1]} 31. Qxh4 {[%clk 0:00:23.1]} 31... d3 {[%clk
0:00:14]} 32. Bh3 {[%clk 0:00:18.8]} 32... Qb4 {[%clk 0:00:06.5]} 33. exf6
{[%clk 0:00:16.2]} 33... Qc3 {[%clk 0:00:03.9]} 34. f7 {[%clk 0:00:11.8]} 34...
Qd4+ {[%clk 0:00:04]} 35. Kh2 {[%clk 0:00:11.1]} 35... d2 {[%clk 0:00:04.3]} 36.
Rd1 {[%clk 0:00:10.8]} 36... Rxf7 {[%clk 0:00:03.3]} 37. Bg4 {[%clk 0:00:04.1]}
37... Rxf4 {[%clk 0:00:02.8]} 38. Qe7 {[%clk 0:00:03.3]} 38... Rxg4 {[%clk
0:00:02.4]} 39. Qf8+ {[%clk 0:00:03.7]} 39... Kh7 {[%clk 0:00:02.9]} 40. Qf5+
{[%clk 0:00:03.9]} 40... Rxf5 {[%clk 0:00:02.6]} 0-1